bitfinex-derivatives/quotes_ETHF0:USTF0_20250123
["timestamp","ask_amount","ask_price","bid_price","bid_amount"]
[1737634164791,0.62226,3215.3,3215.2,0.62224]
[1737634165193,2.45554293,3215.4,3214.7,40.8]
[1737634165389,0.62234,3214.9,3214.8,0.62232]
[1737634165988,0.62232,3215.0,3214.9,0.6223]
[1737634166186,1.64059,3215.1,3215.0,0.6223]
[1737634166385,3.83006,3215.2,3215.1,0.62228]
[1737634166586,3.2078,3215.2,3215.1,0.62228]
[1737634170000,0.62218,3215.6,3215.5,0.6222]
[1737634170194,0.62223,3215.4,3215.3,0.62223]
[1737634170398,0.62221,3215.5,3215.4,0.62222]
[1737634170695,3.21246774,3215.8,3214.9,3.2078]
[1737634170900,3.21246774,3215.8,3215.7,0.62216]
[1737634171397,0.00466774,3215.8,3215.7,0.62216]
[1737634173194,0.00466774,3215.8,3215.6,1.0514]
[1737634173395,0.62680774,3215.8,3215.6,1.67357]
[1737634173703,0.00466774,3215.8,3215.6,1.0514]
[1737634173904,0.00466774,3215.8,3215.7,0.62216]
[1737634179014,0.00466774,3215.8,3215.7,3.82996]
[1737634179911,0.00466774,3215.8,3215.7,44.62996]
[1737634182408,0.00466774,3215.8,3215.7,44.87903172]
[1737634182612,7.33e-06,3215.8,3215.7,49.87903172]
[1737634182913,3.7259,3216.8,3216.7,0.62197]
[1737634182914,4.34786,3216.8,3216.7,0.62197]
[1737634183297,4.34786,3216.8,3216.7,0.33531165]
[1737634183697,3.7259,3216.8,3216.4,0.9892]
[1737634183907,3.7259,3216.8,3216.7,0.62197]
[1737634185515,0.5181,3216.8,3216.7,0.62197]
[1737634185814,1.14006,3216.8,3216.6,0.62197]
[1737634186602,0.62197,3216.7,3216.5,0.622]
[1737634186804,0.5181,3216.8,3216.4,0.00466774]
[1737634187001,3.82981,3216.5,3216.4,0.00466774]
[1737634187508,4.33071,3216.5,3216.4,0.00466774]
[1737634188319,5.98471,3216.5,3216.4,0.00466774]
[1737634189709,5.3627,3216.5,3215.7,3.2078]
[1737634189910,0.62214,3215.8,3215.7,3.2078]
[1737634190415,0.62214,3215.8,3215.7,3.82996]
[1737634190616,0.62214,3215.8,3215.7,3.2078]
[1737634191411,0.62213,3215.9,3215.7,3.82995]
[1737634191716,0.62214,3215.8,3215.7,3.2078]
[1737634196518,0.62218,3215.7,3215.4,40.63356774]
[1737634196717,0.5105,3215.9,3215.4,0.00466774]
[1737634196718,6.28554293,3215.5,3215.4,0.00466774]
[1737634197020,10.42080696,3215.5,3215.4,0.00466774]
[1737634197427,10.93860696,3215.5,3215.4,0.00256947]
[1737634198131,7.96526403,3215.5,3215.4,0.00256947]
[1737634198324,3.83,3215.5,3215.4,0.00256947]
[1737634199430,6.28554293,3215.5,3215.4,0.00256947]
[1737634207338,10.28875453,3215.5,3215.4,0.00256947]
[1737634208339,10.28875453,3215.5,3215.4,0.00141455]
[1737634208733,9.66655453,3215.5,3214.6,1.537]
[1737634208934,0.62236,3214.7,3214.6,1.537]
[1737634209342,0.62236,3214.7,3214.6,42.337]
[1737634209736,0.5003,3215.1,3214.6,42.337]
[1737634210041,0.62235,3214.8,3214.6,42.337]
[1737634210238,3.2078,3215.5,3214.6,42.337]
[1737634210450,1.38509336,3215.5,3215.4,0.62222]
[1737634210739,0.62213,3215.9,3215.2,3.2078]
[1737634210740,3.2078,3215.9,3215.2,3.2078]
[1737634211041,0.6223,3215.0,3214.8,3.83014]
[1737634211238,0.6223,3215.0,3214.9,0.4821]
[1737634211936,0.00466774,3215.2,3214.9,0.4821]
[1737634212136,0.62693774,3215.2,3215.0,0.6223]
[1737634212938,0.62228,3215.1,3214.9,1.10441]
[1737634213139,0.62693774,3215.2,3214.9,1.10441]
[1737634213843,0.00466774,3215.2,3214.9,1.10441]
[1737634214041,0.00466774,3215.2,3215.0,0.6223]
[1737634214839,0.00466774,3215.2,3215.1,0.62228]
[1737634217242,0.00466774,3215.2,3214.9,0.4821]
[1737634217440,0.00466774,3215.2,3215.1,0.62228]
[1737634225747,0.00466774,3215.2,3215.1,0.34262612]
[1737634230254,0.00466774,3215.2,3215.1,0.62228]
[1737634231056,0.00466774,3215.2,3214.9,0.4821]
[1737634231256,0.00466774,3215.2,3215.1,0.62228]
[1737634235154,0.62692774,3215.2,3215.1,0.62228]
[1737634235357,0.00466774,3215.2,3215.1,0.62228]
[1737634235960,0.00466774,3215.2,3214.8,3.52911742]
[1737634236153,0.00466774,3215.2,3215.1,0.62228]
[1737634238457,2.46021067,3215.2,3214.4,3.2078]
[1737634238657,3.2078,3215.0,3214.5,0.4981]
[1737634238858,0.62241,3214.4,3214.1,0.62246]
[1737634239165,0.62241,3214.4,3214.0,3.2078]
[1737634240862,3.83021,3214.4,3213.9,0.5108]
[1737634241163,1.55616,3214.2,3213.4,3.2078]
[1737634241359,0.62259,3213.5,3213.4,3.2078]
[1737634241558,0.62259,3213.5,3212.6,3.2078]
[1737634241559,1.55648,3213.5,3212.6,3.2078]
[1737634241758,1.55648,3213.5,3212.7,0.62274]
[1737634241759,5.66334293,3213.3,3212.7,0.62274]
[1737634241959,7.31534293,3213.3,3212.6,3.6892]
[1737634242165,0.62267,3213.1,3212.7,0.62273]
[1737634242366,0.62267,3213.1,3212.7,0.62274]
[1737634242563,4.86446774,3213.3,3212.6,3.69386774]
[1737634242764,1.65666774,3213.3,3213.2,0.62265]
[1737634242973,0.00466774,3213.3,3213.2,0.62265]
[1737634243263,0.00466774,3213.3,3213.2,3.83045]
[1737634243462,0.00466774,3213.3,3213.2,4.32915]
[1737634243763,0.00466774,3213.3,3213.2,4.80855]
[1737634245061,0.00466774,3213.3,3213.2,45.60855]
[1737634245367,1.66,3214.2,3214.0,0.62247]
[1737634245565,1.66,3214.2,3213.4,1.55652]
[1737634245566,2.28246,3214.2,3213.9,0.6225]
[1737634246065,1.66,3214.2,3213.7,3.2078]
[1737634246364,1.66,3214.2,3213.8,0.62252]
[1737634246567,2.28246,3214.2,3213.8,0.62252]
[1737634247267,1.66,3214.2,3213.9,0.6225]
[1737634248266,1.66,3214.2,3213.7,3.2078]
[1737634248457,0.62248,3214.1,3213.8,1.10323]
[1737634248653,2.28246,3214.2,3213.8,1.10323]
[1737634249160,1.66,3214.2,3213.9,0.6225]
[1737634249768,2.28246,3214.2,3213.8,1.10322]
[1737634250065,2.28246,3214.2,3213.9,0.62251]
[1737634250274,2.28246,3214.2,3213.8,1.10322]
[1737634252269,2.28246,3214.2,3213.8,0.4807]
[1737634252471,2.28246,3214.2,3213.8,1.10322]
[1737634252674,1.66,3214.2,3213.8,1.10322]
[1737634252966,1.66,3214.2,3213.8,0.4807]
[1737634253168,1.66,3214.2,3214.0,0.62248]
[1737634253561,1.66,3214.2,3214.1,0.62247]
[1737634253961,0.00466774,3214.3,3214.2,0.62245]
[1737634254365,0.00466774,3214.3,3214.1,0.62246]
[1737634254565,0.00466774,3214.3,3213.8,0.4807]
[1737634254757,0.00466774,3214.3,3214.2,0.62245]
[1737634256170,3.21246774,3214.3,3213.8,0.73146238]
[1737634256374,0.62274,3212.7,3212.6,0.00466774]
[1737634256571,0.62274,3212.7,3211.2,15.42240151]
[1737634256572,1.55692,3212.6,3211.4,0.62299]
[1737634256775,0.62294,3211.7,3211.3,1.0112]
[1737634256964,0.62294,3211.7,3211.3,0.5159]
[1737634256965,0.62298,3211.5,3211.3,0.5159]
[1737634257164,0.62301,3211.3,3211.2,4.87590404]
[1737634258074,2.27501,3211.3,3211.2,4.87590404]
[1737634258275,5.48281,3211.3,3211.2,4.87590404]
[1737634258474,9.54769623,3211.3,3211.2,4.87590404]
[1737634258770,13.92468623,3211.3,3210.9,9.75647583]
[1737634259076,3.07857293,3211.2,3210.9,9.75647583]
[1737634259260,2.45554293,3211.2,3210.9,0.00466774]
[1737634259464,0.62307,3211.0,3210.9,0.00466774]
[1737634259669,3.07861293,3211.0,3210.9,0.00466774]
[1737634260274,0.62307,3211.0,3210.9,0.00466774]
[1737634260882,2.45554293,3211.2,3210.9,0.00466774]
[1737634261073,3.07857293,3211.2,3210.9,0.00466774]
[1737634261371,2.45554293,3211.2,3210.9,0.00466774]
[1737634261672,4.01324293,3211.0,3209.9,3.2078]
[1737634261878,2.45554293,3210.1,3209.9,3.2078]
[1737634262178,2.45554293,3210.1,3210.0,40.8]
[1737634262470,2.45554293,3210.1,3209.9,3.2078]
[1737634265170,1.654,3210.3,3209.9,3.2078]
[1737634265578,1.654,3210.3,3209.9,3.83109]
[1737634266279,1.654,3210.3,3209.9,3.2078]
[1737634266768,1.654,3210.3,3210.0,40.8]
[1737634267370,1.654,3210.3,3210.1,0.62324]
[1737634267670,1.654,3210.3,3210.0,40.8]
[1737634268179,2.27722,3210.3,3210.0,40.8]
[1737634268370,1.654,3210.3,3210.0,40.8]
[1737634268774,2.27721,3210.3,3210.0,40.8]
[1737634269077,1.654,3210.3,3210.0,40.8]
[1737634269281,2.45554293,3210.1,3210.0,40.8]
[1737634269478,2.45554293,3210.1,3209.9,3.2078]
[1737634269776,2.45554293,3210.1,3207.6,0.45645355]
[1737634269777,5.66334293,3210.0,3208.1,3.7328]
[1737634269977,2.45554293,3208.9,3208.2,40.8]
[1737634270174,3.2078,3209.1,3208.6,0.62353]
[1737634270368,3.2078,3209.1,3208.2,40.8]
[1737634270584,1.674,3209.0,3208.2,40.8]
[1737634270783,1.674,3209.0,3208.8,0.62349]
[1737634270984,0.00466774,3208.9,3208.8,0.62349]
[1737634271184,0.00466774,3208.9,3208.7,0.6235]
[1737634271385,0.00466774,3208.9,3208.8,0.6235]
[1737634271580,0.00466774,3208.9,3208.7,0.62351]
[1737634272980,0.00466774,3208.9,3208.8,0.6235]
[1737634273775,0.00466774,3208.9,3208.5,3.2078]
[1737634274485,0.00466774,3208.9,3208.8,0.6235]
[1737634275273,0.00466774,3208.9,3208.7,0.62351]
[1737634275472,0.00466774,3208.9,3208.5,3.2078]
[1737634275678,0.00466774,3208.9,3208.6,0.62353]
[1737634275986,0.00466774,3208.9,3208.7,0.62351]
[1737634276485,0.00466774,3208.9,3208.8,0.6235]
[1737634276682,0.00466774,3208.9,3208.7,0.62351]
[1737634276988,0.00466774,3208.9,3208.8,0.6235]
[1737634277386,0.00466774,3208.9,3208.5,3.2078]
[1737634277387,2.46021067,3208.9,3208.5,3.2078]
[1737634277584,3.08370067,3208.9,3208.5,3.2078]
[1737634277792,2.46021067,3208.9,3208.8,0.00260224]
[1737634278490,0.00466774,3208.9,3208.8,0.00260224]
[1737634279287,0.00466774,3208.9,3208.8,0.62610224]
[1737634279790,0.00466774,3208.9,3208.8,0.00260224]
[1737634280993,3.08369067,3208.9,3208.8,0.00260224]
[1737634281293,8.73472066,3208.9,3208.8,0.00260224]
[1737634281585,8.11124066,3208.9,3208.1,3.2078]
[1737634281889,0.62362,3208.2,3208.1,3.2078]
[1737634284086,2.45554293,3208.3,3208.1,3.2078]
[1737634284391,0.62362,3208.2,3208.1,3.2078]
[1737634284887,2.45554293,3208.6,3208.1,3.2078]
[1737634285092,0.62361,3208.3,3208.1,3.2078]
[1737634285790,3.2078,3208.7,3208.1,3.2078]
[1737634285995,1.655,3208.6,3208.3,0.62359]
[1737634286291,1.655,3208.6,3208.4,0.5244]
[1737634286992,1.655,3208.6,3208.5,0.62356]
[1737634287186,3.2078,3208.7,3208.4,0.5244]
[1737634287384,0.00466774,3208.9,3208.5,0.4793]
[1737634287691,0.00466774,3208.9,3208.8,0.6235]
[1737634289089,0.00466774,3208.9,3208.5,3.2078]
[1737634289293,0.00466774,3208.9,3208.7,0.62351]
[1737634289482,0.00466774,3208.9,3208.4,3.7322]
[1737634289683,0.00466774,3208.9,3208.5,40.8]
[1737634289993,0.00466774,3208.9,3208.6,0.62353]
[1737634290385,0.00466774,3208.9,3208.8,0.6235]
[1737634290589,0.00466774,3208.9,3208.4,3.7322]
[1737634290795,0.00466774,3208.9,3208.7,0.6235]
[1737634291292,0.62815774,3208.9,3208.4,3.7322]
[1737634291483,0.00466774,3208.9,3208.7,0.62352]
[1737634291684,0.00466774,3208.9,3208.6,0.62353]
[1737634291685,0.62815774,3208.9,3208.6,0.62353]
[1737634292086,3.2078,3208.8,3208.4,0.5244]
[1737634292287,2.45554293,3208.6,3208.2,1.13761]
[1737634292493,0.62359,3208.4,3208.2,0.514]
[1737634292695,0.6236,3208.3,3208.2,0.514]
[1737634293092,3.07914293,3208.3,3208.2,0.514]
[1737634293294,2.45554293,3208.3,3208.0,3.2078]
[1737634293491,0.62363,3208.2,3208.0,3.2078]
[1737634293999,2.45554293,3208.3,3208.0,3.2078]
[1737634294294,3.07914293,3208.3,3208.0,3.2078]
[1737634296796,3.2078,3208.2,3207.8,0.5124]
[1737634297005,0.62367,3207.9,3207.8,0.5124]
[1737634297507,0.62372,3207.7,3207.5,0.4918]
[1737634297804,2.45554293,3207.7,3207.5,0.4918]
[1737634298002,2.45554293,3207.7,3207.2,0.4905]
[1737634298200,0.62375,3207.6,3207.2,1.1143]
[1737634298398,0.62379,3207.4,3207.2,0.4905]
[1737634298605,0.62381,3207.2,3207.1,3.2078]
[1737634299303,0.62391,3206.8,3206.4,1.60145]
[1737634299604,2.45554293,3206.9,3206.4,0.4875]
[1737634299800,4.11521801,3206.9,3206.4,0.4875]
[1737634300000,0.62393,3206.6,3206.4,0.4875]
[1737634300197,0.62395,3206.5,3206.4,0.4875]
[1737634300610,0.62397,3206.4,3206.2,44.0078]
[1737634300908,0.62406,3206.0,3205.7,3.6978]
[1737634301100,3.07960293,3206.0,3205.7,3.6978]
[1737634301305,3.07960293,3206.0,3205.8,40.8]
[1737634301306,0.62407,3205.9,3205.8,40.8]
[1737634301610,0.62413,3205.6,3205.3,3.2078]
[1737634301810,0.62411,3205.7,3205.3,3.2078]
[1737634302113,4.0451815,3205.9,3205.4,40.8]
[1737634302412,3.99805525,3206.2,3205.4,41.3274]
[1737634302711,0.62401,3206.2,3205.5,3.2078]
[1737634302903,0.62401,3206.2,3205.7,0.62409]
[1737634303206,2.45554293,3206.3,3205.7,0.62409]
[1737634303412,0.62403,3206.1,3205.6,1.12181]
[1737634303613,3.98382737,3206.2,3205.6,0.4977]
[1737634303816,6.20043527,3206.5,3205.6,0.4977]
[1737634304205,0.62404,3206.1,3205.6,1.12181]
[1737634304513,6.20043527,3206.5,3205.6,0.4977]
[1737634304711,6.20043527,3206.5,3205.4,41.3274]
[1737634304712,7.27171943,3206.0,3205.4,40.8]
[1737634304912,3.2078,3205.6,3205.0,3.2078]
[1737634305212,2.99263527,3205.3,3205.0,3.2078]
[1737634305402,3.61683527,3205.3,3205.0,3.2078]
[1737634305609,0.6242,3205.2,3205.0,3.2078]
[1737634306112,3.61683527,3205.3,3205.0,3.2078]
[1737634306312,2.99263527,3205.3,3205.0,3.2078]
[1737634306510,1.659,3205.5,3205.0,3.2078]
[1737634306908,2.28314,3205.5,3205.0,3.83203]
[1737634307408,1.656,3205.5,3205.0,3.2078]
[1737634307606,3.61682527,3205.3,3204.8,0.62427]
[1737634307802,2.99263527,3205.3,3204.9,0.5199]
[1737634308007,3.61682527,3205.3,3204.9,0.5199]
[1737634308616,1.656,3205.3,3205.0,0.62424]
[1737634309414,1.656,3205.3,3204.9,0.5199]
[1737634309813,1.656,3205.3,3204.9,1.14415]
[1737634310313,1.656,3205.3,3204.9,0.5199]
[1737634310625,1.656,3205.3,3205.0,0.62423]
[1737634310918,1.656,3205.3,3205.1,40.8]
[1737634312320,4.01326514,3205.2,3205.1,40.8]
[1737634312522,4.63746514,3205.2,3205.1,40.8]
[1737634313518,4.01326514,3205.2,3204.9,0.5199]
[1737634313720,0.62422,3205.1,3204.9,0.5199]
[1737634313919,0.62422,3205.1,3204.9,41.3199]
[1737634314920,0.62421,3205.2,3204.9,0.5199]
[1737634315119,0.00467508,3205.4,3204.9,0.5199]
[1737634315313,1.656,3205.3,3205.0,0.62422]
[1737634315513,1.656,3205.3,3205.0,41.42422]
[1737634315713,1.656,3205.3,3205.0,0.62422]
[1737634316012,1.656,3205.3,3204.9,0.5199]
[1737634316414,0.00467508,3205.4,3205.3,0.62418]
[1737634323123,1.656,3205.8,3205.1,0.5269]
[1737634323319,1.656,3205.8,3205.6,0.62411]
[1737634323515,7.30979618,3206.0,3205.2,1.56049]
[1737634323725,7.30979618,3206.0,3205.4,1.56039]
[1737634323726,3.2078,3206.0,3205.4,1.56039]
[1737634324025,3.2078,3206.0,3205.9,0.62406]
[1737634324322,2.06463,3206.6,3205.8,4.76798]
[1737634324323,2.46952545,3206.6,3205.8,4.76798]
[1737634324516,3.2078,3206.7,3206.5,0.62395]
[1737634324517,4.8638,3206.7,3206.5,0.62395]
[1737634324717,3.2078,3206.7,3206.5,0.62395]
[1737634324920,5.67732545,3206.7,3206.0,1.56009]
[1737634325224,5.67732545,3206.7,3206.1,0.5164]
[1737634325420,5.67732545,3206.7,3206.2,0.62401]
[1737634325632,5.67732545,3206.7,3206.5,0.62393]
[1737634325919,5.67732545,3206.7,3206.6,0.62393]
[1737634325920,3.2078,3206.7,3206.6,0.62393]
[1737634327024,5.67732545,3206.7,3206.2,3.2078]
[1737634327330,3.09351545,3206.3,3206.0,0.62403]
[1737634327527,2.46952545,3206.3,3205.9,0.5058]
[1737634327933,2.46952545,3206.3,3206.1,0.62402]
[1737634328132,2.46952545,3206.3,3206.2,0.62401]
[1737634329631,2.27996,3206.5,3206.3,0.62398]
[1737634329828,1.656,3206.5,3206.4,0.62397]
[1737634330219,3.2078,3206.7,3206.0,0.484]
[1737634330425,3.2078,3206.7,3206.6,0.62393]
[1737634330925,0.00467508,3206.9,3206.8,0.62389]
[1737634336128,2.46952545,3207.5,3206.5,5.67732545]
[1737634336432,3.09327545,3207.5,3207.4,0.62377]
[1737634336822,2.46952545,3207.5,3207.4,0.62377]
[1737634337029,0.62378,3207.4,3207.2,0.6238]
[1737634337223,2.46952545,3207.5,3207.0,0.5196]
[1737634337526,3.09334545,3207.2,3207.0,1.14344]
[1737634338229,2.46952545,3207.2,3207.1,0.62383]
[1737634338433,2.46952545,3207.2,3207.0,0.5196]
[1737634338634,2.46952545,3207.2,3207.0,1.14344]
[1737634338836,3.09335545,3207.2,3207.0,1.14344]
[1737634339032,2.46952545,3207.2,3207.1,0.62383]
[1737634339537,3.09334545,3207.2,3207.0,1.14343]
[1737634339737,2.46952545,3207.2,3207.1,0.62383]
[1737634342940,0.6238,3207.3,3207.1,0.62383]
[1737634344038,2.94762545,3207.5,3207.1,0.62383]
[1737634344223,0.62378,3207.4,3207.1,0.62383]
[1737634344426,0.62377,3207.4,3207.1,0.62383]
[1737634344628,0.62377,3207.4,3207.0,0.5196]
[1737634344935,0.62377,3207.4,3207.1,0.62382]
[1737634345541,0.6238,3207.3,3207.0,0.62384]
[1737634345739,2.46952545,3207.2,3207.0,0.62384]
[1737634345933,3.09333545,3207.2,3206.9,3.83166]
[1737634346133,2.46952545,3207.2,3207.0,0.62384]
[1737634347038,2.46952545,3207.2,3207.1,0.62383]
[1737634347239,3.09333545,3207.2,3207.0,0.62384]
[1737634348140,2.46952545,3207.2,3207.1,0.62383]
[1737634350439,2.46952545,3207.2,3206.7,1.55974]
[1737634350644,2.46952545,3207.2,3207.0,0.62383]
[1737634350847,3.09335545,3207.2,3207.0,0.62383]
[1737634351644,3.09335545,3207.2,3206.7,40.8]
[1737634351838,2.46952545,3207.2,3207.1,0.62383]
[1737634352447,3.09333545,3207.2,3207.0,0.62383]
[1737634352748,3.09333545,3207.2,3206.7,40.8]
[1737634352938,2.46952545,3207.2,3207.1,0.62383]
[1737634353340,3.09333545,3207.2,3207.1,0.62383]
[1737634353951,3.09333545,3207.2,3206.7,40.8]
[1737634354147,3.09333545,3207.2,3207.0,0.62384]
[1737634354444,6.47959912,3207.1,3206.4,0.4989]
[1737634354743,2.46952545,3206.5,3205.7,0.9877]
[1737634354942,2.46952545,3206.5,3205.8,40.8]
[1737634355145,0.62398,3206.4,3206.2,0.624]
[1737634355336,3.09348545,3206.5,3206.3,0.62398]
[1737634356849,3.09348545,3206.5,3205.8,42.36019]
[1737634356850,0.62397,3206.4,3205.8,42.36019]
[1737634357049,3.09349545,3206.5,3206.2,0.624]
[1737634357346,3.09349545,3206.5,3206.3,0.62398]
[1737634357548,3.09349545,3206.5,3206.2,0.62399]
[1737634358645,2.46952545,3206.5,3205.8,42.36019]
[1737634358951,0.62399,3206.4,3206.1,0.62402]
[1737634359844,2.46952545,3206.2,3205.8,40.8]
[1737634360053,2.46952545,3206.2,3205.7,1.59429]
[1737634360351,0.62408,3205.8,3205.7,1.59429]
[1737634360551,0.62408,3205.8,3205.7,41.7702]
[1737634360743,0.62405,3206.0,3205.8,0.62407]
[1737634360944,0.62408,3205.9,3205.7,1.59429]
[1737634361248,0.62408,3205.8,3205.7,1.59429]
[1737634362051,0.62408,3205.8,3205.7,0.9702]
[1737634362446,0.62408,3205.8,3205.7,1.5943]
[1737634363047,0.62407,3205.9,3205.8,0.62408]
[1737634366049,0.62406,3206.0,3205.8,0.62408]
[1737634366648,1.654,3206.1,3205.7,0.9702]
[1737634366852,0.62405,3206.0,3205.8,0.62406]
[1737634367156,1.654,3206.1,3205.9,0.62406]
[1737634367356,1.654,3206.1,3205.7,0.4827]
[1737634367556,0.62405,3206.0,3205.8,0.62407]
[1737634367957,2.177,3206.1,3205.8,0.62407]
[1737634368257,2.80104,3206.1,3205.8,0.62407]
[1737634368551,3.2078,3206.3,3205.8,0.62407]
[1737634368755,3.2078,3206.7,3206.6,0.62393]
[1737634369147,3.2078,3206.7,3206.6,41.42393]
[1737634369747,3.2078,3206.7,3206.6,0.62393]
[1737634370653,2.46952545,3206.8,3206.6,0.62393]
[1737634370861,2.46952545,3206.8,3206.7,0.62391]
[1737634371858,1.653,3206.9,3206.7,0.62391]
[1737634372553,1.653,3206.9,3206.5,0.5222]
[1737634372861,2.27688,3206.9,3206.6,0.62392]
[1737634373559,5.67732545,3207.1,3206.5,0.5222]
[1737634373854,5.76519704,3207.0,3206.5,0.5222]
[1737634374056,5.76519704,3207.0,3206.9,0.62387]
[1737634374259,1.653,3207.0,3206.9,0.62387]
[1737634374457,3.2078,3207.1,3207.0,0.62385]
[1737634375056,0.62387,3206.9,3206.6,3.2078]
[1737634375367,3.09342545,3206.8,3206.5,1.14614]
[1737634375558,2.46952545,3206.8,3206.5,0.5222]
[1737634375755,0.62388,3206.9,3206.6,0.62392]
[1737634377056,0.62388,3206.9,3206.0,1.56009]
[1737634377057,3.2078,3206.7,3205.7,0.9976]
[1737634377262,2.46952545,3206.4,3205.7,0.9976]
[1737634377465,0.62402,3206.2,3205.9,0.62406]
[1737634377965,0.62404,3206.1,3205.8,0.62407]
[1737634380460,0.62406,3206.0,3205.7,0.9976]
[1737634380766,0.62404,3206.1,3205.8,0.62408]
[1737634381959,0.62404,3206.1,3205.9,0.62406]
[1737634382266,0.62404,3206.1,3205.8,0.62407]
[1737634382758,0.62404,3206.1,3205.7,0.9976]
[1737634382759,3.2078,3206.3,3205.7,0.9976]
[1737634382965,2.46952545,3206.7,3206.2,0.62401]
[1737634382966,0.62397,3206.5,3206.2,0.62401]
[1737634383164,7.33032545,3206.7,3206.3,0.499]
[1737634383365,0.62395,3206.6,3206.4,0.5239]
[1737634383566,7.33032545,3206.7,3206.4,0.5239]
[1737634383762,7.33032545,3206.7,3205.7,1.56026]
[1737634383965,0.62399,3206.3,3206.1,0.62402]
[1737634384163,2.46952545,3206.4,3206.1,0.62402]
[1737634384461,2.46952545,3206.4,3205.8,0.5145]
[1737634384668,0.62406,3206.0,3205.8,0.5145]
[1737634384971,2.46952545,3206.4,3205.8,0.5145]
[1737634385159,0.62406,3205.9,3205.8,0.5145]
[1737634389967,3.83186,3205.9,3205.8,0.5145]
[1737634392570,0.6241,3205.7,3205.6,0.00467508]
[1737634392767,3.09362545,3205.7,3205.6,0.00467508]
[1737634397274,0.6241,3205.7,3205.6,0.00467508]
[1737634398670,3.09362545,3205.7,3205.6,0.00467508]
[1737634399375,6.58278752,3205.7,3204.0,3.2078]
[1737634399577,3.09383545,3204.7,3204.5,0.4792]
[1737634399775,2.46952545,3204.7,3204.5,0.4792]
[1737634399980,0.62431,3204.7,3204.5,0.4792]
[1737634400170,2.46952545,3204.7,3204.5,0.4792]
[1737634400371,0.62432,3204.6,3204.5,0.4792]
[1737634405084,2.2813,3204.8,3204.5,1.10352]
[1737634405484,3.2078,3205.0,3204.5,0.4792]
[1737634405684,3.2078,3205.0,3204.9,0.62426]
[1737634406394,3.2078,3205.0,3204.9,41.42426]
[1737634406993,3.2078,3205.0,3204.9,0.62426]
[1737634408197,0.62421,3205.2,3204.9,0.62426]
[1737634409098,2.46952545,3205.3,3204.8,0.62427]
[1737634409298,0.62427,3204.9,3204.7,1.12469]
[1737634409495,0.62427,3204.9,3204.7,0.5004]
[1737634409893,0.62427,3204.9,3204.7,1.12469]
[1737634410694,4.04792837,3204.8,3204.2,3.6962]
[1737634410891,0.6243,3204.7,3204.4,1.12394]
[1737634411088,0.62432,3204.6,3204.4,1.12394]
[1737634411295,0.62432,3204.6,3204.4,0.4996]
[1737634411494,0.62434,3204.5,3204.4,0.4996]
[1737634411697,0.62433,3204.6,3204.3,0.51877508]
[1737634411890,0.62434,3204.5,3204.3,0.62905508]
[1737634412093,0.62434,3204.5,3204.4,0.997]
[1737634412694,3.2078,3204.9,3204.4,0.997]
[1737634412902,0.62433,3204.6,3204.4,1.62135]
[1737634413098,0.62431,3204.7,3204.5,0.62433]
[1737634413300,3.2078,3204.9,3204.5,0.62433]
[1737634413603,0.62431,3204.7,3204.5,0.62434]
[1737634413906,3.2078,3204.9,3204.4,0.997]
[1737634414204,0.62428,3204.8,3204.5,0.62432]
[1737634414395,3.2078,3204.9,3204.6,0.62432]
[1737634414802,0.62429,3204.8,3204.6,0.62432]
[1737634415496,0.62428,3204.8,3204.6,0.62432]
[1737634416803,0.62428,3204.8,3204.5,0.62433]
[1737634417004,0.62433,3204.6,3204.3,0.62904508]
[1737634417305,2.46952545,3204.7,3204.3,0.62904508]
[1737634417306,0.62434,3204.5,3204.3,0.62904508]
[1737634417505,0.62436,3204.4,3204.3,0.00467508]
[1737634418800,2.46952545,3204.7,3204.3,0.00467508]
[1737634419005,0.62434,3204.5,3204.3,0.00467508]
[1737634419603,2.46952545,3204.7,3204.3,0.00467508]
[1737634420008,0.62433,3204.6,3204.4,0.62435]
[1737634420307,0.62433,3204.6,3204.3,0.62903508]
[1737634420707,0.62434,3204.5,3204.3,0.62904508]
[1737634421809,3.2078,3204.9,3204.3,0.00467508]
[1737634422007,0.62429,3204.8,3204.5,0.62432]
[1737634422307,0.62429,3204.8,3204.6,0.62432]
[1737634422508,0.62429,3204.8,3204.7,0.982]
[1737634422700,3.2078,3204.9,3204.7,0.982]
[1737634422901,0.62428,3204.8,3204.7,0.982]
[1737634427710,3.83206,3204.9,3204.7,0.982]
[1737634428012,3.83206,3204.9,3204.7,1.60629]
[1737634428409,3.83206,3204.9,3204.7,0.982]
[1737634428617,0.62428,3204.8,3204.7,0.982]
[1737634428815,3.83208,3204.9,3204.7,0.982]
[1737634429115,3.83208,3204.9,3204.8,0.00168694]
[1737634435622,0.62436,3204.4,3204.3,0.00467508]
[1737634435823,3.09388545,3204.4,3204.3,0.00467508]
[1737634436621,7.12305515,3204.4,3204.3,0.00467508]
[1737634436822,10.33085515,3204.4,3204.3,0.00467508]
[1737634437321,10.33085515,3204.4,3204.3,0.00064071]
[1737634437519,7.8613297,3204.4,3204.3,0.00064071]
[1737634438016,8.3537297,3204.4,3204.3,0.00064071]
[1737634438822,8.6878297,3204.4,3204.3,0.00064071]
[1737634439322,0.62451,3203.6,3203.5,40.8]
[1737634439621,0.62457,3203.3,3203.0,3.83242]
[1737634439822,3.09410545,3203.3,3202.9,0.62463]
[1737634440127,2.46952545,3203.3,3202.9,0.62463]
[1737634440326,2.46952545,3203.0,3202.5,4.241]
[1737634440816,2.46952545,3203.0,3202.6,0.6247]
[1737634440817,3.09416545,3203.0,3202.6,0.6247]
[1737634441018,3.09415545,3203.0,3202.7,0.62468]
[1737634441215,3.2078,3202.8,3201.8,3.2078]
[1737634441421,2.46952545,3201.9,3201.8,3.7205]
[1737634441620,2.46952545,3201.9,3201.8,3.2078]